bitfinex-derivatives/quotes_ETHF0:USTF0_20251216
["timestamp","ask_amount","ask_price","bid_price","bid_amount"]
[1765907982780,3.2078,2918.6,2918.2,2.1473]
[1765907983280,41.78192717,2918.5,2918.2,2.1473]
[1765907983582,41.78192717,2918.5,2918.0,0.4756]
[1765907983583,3.05582717,2918.4,2918.0,0.4756]
[1765907983782,2.0739,2918.4,2918.0,0.4756]
[1765907984186,1.0534,2918.1,2918.0,0.4756]
[1765907984387,1.0534,2918.1,2918.0,1.5133]
[1765907984886,40.97135,2918.5,2918.0,2.6229]
[1765907985086,0.98228456,2918.4,2918.0,2.6229]
[1765907985289,40.97135,2918.5,2918.0,2.6229]
[1765907985487,0.98261487,2918.4,2918.0,2.6229]
[1765907985688,40.97135,2918.5,2918.0,2.6229]
[1765907985886,1.05854173,2918.8,2918.5,0.6285]
[1765907986079,0.00514173,2918.8,2918.7,2.1473]
[1765907986989,1.0534,2918.6,2918.5,1.6662]
[1765907987187,0.00514173,2918.8,2918.5,2.7758]
[1765907987384,0.00514173,2918.8,2918.7,2.1473]
[1765907988479,2.07904173,2918.8,2918.2,3.2078]
[1765907988789,3.2078,2918.5,2918.0,0.4756]
[1765907989489,3.2078,2918.5,2918.4,1.0377]
[1765907989678,0.00514173,2918.8,2918.5,0.6285]
[1765907990182,1.05854173,2918.8,2918.7,2.1473]
[1765907990381,0.00514173,2918.8,2918.7,2.1473]
[1765907990583,0.98792334,2918.8,2918.3,5.3551]
[1765907990779,1.05854173,2918.8,2918.7,1.0377]
[1765907990983,0.00514173,2918.8,2918.7,2.1473]
[1765907992591,4.173e-05,2918.8,2918.7,2.1473]
[1765907994290,1.05344173,2918.8,2918.7,2.1473]
[1765907994594,4.173e-05,2918.8,2918.7,2.1473]
[1765907994789,4.173e-05,2918.8,2918.7,1.1096]
[1765907995489,1.05344173,2918.8,2918.7,1.0377]
[1765907996092,4.173e-05,2918.8,2918.7,2.1473]
[1765907996589,4.173e-05,2918.8,2918.7,1.1096]
[1765907996996,4.173e-05,2918.8,2918.5,0.6285]
[1765907999498,4.173e-05,2918.8,2918.6,3.2078]
[1765907999797,4.173e-05,2918.8,2918.6,7.62238054]
[1765908000385,4.173e-05,2918.8,2918.6,3.2078]
[1765908001003,4.173e-05,2918.8,2918.6,3.37915]
[1765908001398,0.0043629,2919.1,2919.0,2.7758]
[1765908001605,3.2078,2919.6,2919.5,2.7758]
[1765908001801,0.66498493,2920.0,2919.9,2.1473]
[1765908001994,3.2078,2920.4,2920.3,2.1473]
[1765908002191,0.631,2921.5,2920.6,2.1473]
[1765908002400,0.00514173,2921.3,2921.2,2.1473]
[1765908002699,0.00793681,2921.3,2921.2,2.15076015]
[1765908002900,2.08183681,2921.3,2921.2,0.00346015]
[1765908003096,2.0739,2920.9,2920.8,1e-08]
[1765908003304,5.2817,2920.9,2920.8,1e-08]
[1765908003496,11.2817,2920.9,2920.0,3.8363]
[1765908003698,5.2817,2920.9,2920.0,3.8363]
[1765908003900,3.21573681,2921.3,2920.8,2.5057]
[1765908004099,3.21573681,2921.3,2920.8,2.51008438]
[1765908004499,3.21573681,2921.3,2920.8,2.51522611]
[1765908004691,2.4336,2920.9,2920.8,0.00952611]
[1765908006297,0.00793681,2921.3,2920.8,0.00952611]
[1765908006298,3.21573681,2921.3,2921.0,0.7868]
[1765908006498,3.21573681,2921.3,2921.2,1.1919]
[1765908006804,3.21573681,2921.3,2921.2,2.5057]
[1765908006805,0.00793681,2921.3,2921.2,2.5057]
[1765908008005,1.18203681,2921.3,2921.0,3.9946]
[1765908008902,1.18203681,2921.3,2921.2,1.1919]
[1765908009501,2.4336,2920.9,2920.8,0.00952611]
[1765908009804,5.6414,2920.9,2920.8,0.00952611]
[1765908010305,3.21573681,2921.3,2920.8,1.20142611]
[1765908010510,5.6414,2920.9,2920.8,0.00952611]
[1765908010702,3.2078,2920.9,2920.8,2.51522611]
[1765908011006,1.1741,2920.9,2920.8,0.00952611]
[1765908012009,2.60481,2920.9,2920.8,0.00952611]
[1765908012312,0.17123,2920.6,2920.0,3.8363]
[1765908013011,40.8,2920.5,2920.0,3.8363]
[1765908013204,1.1741,2920.1,2920.0,3.8363]
[1765908013405,2.4336,2920.1,2920.0,3.21060569]
[1765908014313,1.1741,2920.1,2920.0,3.21060569]
[1765908014713,1.1741,2920.1,2920.0,3.99740569]
[1765908015608,2.4336,2920.1,2920.0,0.78960569]
[1765908016110,2.60486,2920.1,2920.0,0.00280569]
[1765908017811,2.4336,2919.9,2919.8,0.00514173]
[1765908018014,2.60488,2919.7,2919.6,3.2078]
[1765908018612,1.1741,2919.1,2919.0,1.9787]
[1765908018908,3.2078,2920.0,2919.6,2.5057]
[1765908019103,1.1741,2919.7,2919.5,0.7868]
[1765908019305,2.4336,2919.1,2919.0,0.00247359]
[1765908020015,1.17702688,2919.1,2919.0,0.78927359]
[1765908020210,2.43652688,2919.1,2919.0,0.78927359]
[1765908020509,0.00292688,2919.1,2919.0,6.50277359]
[1765908021016,2.43652688,2919.1,2919.0,0.78927359]
[1765908021210,2.43652688,2919.1,2919.0,0.00247359]
[1765908021405,2.60784688,2919.1,2919.0,0.00247359]
[1765908025222,2.60495,2918.6,2918.0,0.7868]
[1765908025422,3.2078,2918.4,2918.0,0.7868]
[1765908026218,1.1741,2918.1,2918.0,1.98160486]
[1765908026414,2.4336,2918.1,2918.0,0.78970486]
[1765908026726,0.17137,2918.3,2918.0,0.78970486]
[1765908027626,1.34547,2918.3,2918.2,1.1919]
[1765908027826,1.34547,2918.3,2918.2,2.5057]
[1765908029625,1.34547,2918.3,2918.0,0.78970486]
[1765908029626,0.00514173,2918.6,2918.5,3.2925]
[1765908029832,0.17142,2917.5,2917.0,3.2925]
[1765908030121,3.2078,2917.1,2917.0,3.2925]
[1765908030720,5.6414,2917.1,2917.0,1.98307845]
[1765908031025,5.6414,2917.1,2916.5,0.7868]
[1765908031225,5.64654173,2917.1,2916.5,0.7868]
[1765908031927,5.64654173,2917.1,2916.5,0.78999914]
[1765908032824,5.6414,2916.6,2916.5,0.00319914]
[1765908033016,0.17148,2916.4,2915.6,3.2078]
[1765908033322,3.2078,2915.7,2915.6,2.5057]
[1765908033918,4.3819,2915.7,2915.0,3.9946]
[1765908034115,4.3819,2915.7,2915.5,0.79051948]
[1765908034318,1.5594,2915.6,2915.5,1.51791948]
[1765908034518,3.2078,2915.7,2915.6,1.4882]
[1765908034717,3.2078,2915.7,2915.6,3.0689]
[1765908035023,3.2078,2916.1,2916.0,3.9335]
[1765908035226,3.2078,2916.2,2916.1,3.0689]
[1765908035423,3.2078,2916.2,2916.0,0.8646]
[1765908035629,3.2078,2916.2,2916.1,1.4882]
[1765908035820,3.2078,2916.2,2916.1,3.0689]
[1765908036427,1.5704,2916.1,2915.5,0.86831948]
[1765908037220,4.7782,2916.2,2916.1,1.4882]
[1765908037527,4.7782,2916.2,2915.5,0.86831948]
[1765908037528,1.5704,2916.1,2915.5,0.86831948]
[1765908037722,3.2078,2916.2,2916.0,1.4882]
[1765908038223,3.2078,2916.2,2916.1,1.4882]
[1765908038427,40.8,2916.5,2916.1,3.0689]
[1765908038624,4.7782,2916.3,2916.2,1.4882]
[1765908038825,3.21094803,2916.6,2916.5,3.9335]
[1765908040326,4.78134803,2916.6,2916.5,2.3528]
[1765908040526,4.78134803,2916.6,2916.5,3.9335]
[1765908040832,4.78134803,2916.6,2916.5,2.3528]
[1765908041231,0.00314803,2916.6,2916.5,3.9335]
[1765908042626,4.803e-05,2916.6,2916.5,3.9335]
[1765908045435,4.803e-05,2916.6,2916.5,7.1413]
[1765908045636,4.803e-05,2916.6,2916.5,23.3813]
[1765908045836,4.803e-05,2916.6,2916.5,3.9335]
[1765908046346,4.803e-05,2916.6,2916.5,12.04665311]
[1765908046633,4.803e-05,2916.6,2916.5,3.9335]
[1765908046833,1.57044803,2916.6,2916.5,3.9335]
[1765908047430,3.10224803,2916.6,2916.1,3.2078]
[1765908047629,1.5704,2916.2,2916.1,4.696]
[1765908047836,4.803e-05,2916.6,2916.1,6.2767]
[1765908048038,1.5704,2916.2,2916.1,1.4882]
[1765908048531,4.803e-05,2916.6,2916.5,0.8646]
[1765908048926,3.10224803,2916.6,2916.0,0.8646]
[1765908049131,3.2078,2916.5,2916.0,0.8646]
[1765908049936,1.5704,2916.1,2916.0,0.8646]
[1765908050238,3.2078,2916.5,2916.0,3.9335]
[1765908050637,3.1022,2915.8,2915.7,0.17152]
[1765908050934,1.5704,2915.1,2914.6,3.2078]
[1765908051141,1.5704,2915.2,2915.1,1.4882]
[1765908051336,3.2078,2915.3,2915.1,1.4882]
[1765908051639,3.2078,2915.3,2914.5,4.0724]
[1765908051838,3.2078,2915.3,2914.5,4.07483872]
[1765908052234,0.00514173,2915.5,2914.8,1.4882]
[1765908052235,3.2078,2914.9,2914.8,1.4882]
[1765908052431,1.5704,2914.6,2914.5,0.00243872]
[1765908052635,3.1022,2914.6,2914.5,0.00243872]
[1765908052938,6.31,2914.6,2914.5,0.00243872]
[1765908053136,3.2078,2914.6,2914.5,3.93593872]
[1765908053542,3.2078,2915.2,2914.5,3.93593872]
[1765908053840,3.2078,2915.2,2915.1,1.4882]
[1765908054040,3.2078,2915.2,2915.1,3.0689]
[1765908054241,3.2078,2915.2,2915.1,1.4882]
[1765908054445,6.31,2915.2,2914.6,0.17158]
[1765908054650,6.31,2915.2,2914.5,0.86703872]
[1765908055046,3.2078,2915.2,2914.5,0.86703872]
[1765908055746,3.2078,2915.2,2914.5,1.03862872]
[1765908055951,3.2078,2915.2,2915.1,1.4882]
[1765908056248,4.7782,2915.2,2914.5,1.03862872]
[1765908058250,1.5704,2915.2,2914.5,1.03862872]
[1765908058450,4.7782,2915.2,2914.5,1.03862872]
[1765908059045,1.5704,2915.2,2914.5,1.03862872]
[1765908060350,1.5704,2915.2,2914.5,4.61662872]
[1765908060545,1.5704,2915.2,2915.1,1.4882]
[1765908060742,2.54096178,2915.2,2915.1,1.4882]
[1765908061653,3.1022,2915.2,2914.7,3.37937]
[1765908062046,1.5704,2915.2,2915.1,3.0689]
[1765908062352,3.2078,2915.4,2915.1,3.0689]
[1765908062750,1.5704,2915.2,2915.1,3.0689]
[1765908063255,1.5704,2915.1,2915.0,3.9335]
[1765908063454,3.2078,2915.4,2915.0,3.9335]
[1765908063755,0.96934589,2915.3,2915.0,3.9335]
[1765908063953,3.2078,2915.4,2915.0,3.9335]
[1765908064153,2.38188512,2915.3,2915.2,1.3674]
[1765908064353,3.76298512,2915.3,2915.2,1.3674]
[1765908065149,3.76298512,2915.3,2915.0,0.8646]
[1765908065354,2.7936,2915.3,2915.2,1.3674]
[1765908065555,3.76421604,2915.3,2915.2,1.3674]
[1765908066049,3.76421604,2915.3,2914.7,3.2078]
[1765908066255,3.2078,2915.1,2914.5,3.56083872]
[1765908066454,6.0014,2914.9,2914.5,0.85003872]
[1765908066753,3.2078,2914.9,2914.5,3.56083872]
[1765908066948,4.6203,2914.9,2914.8,1.3674]
[1765908067247,1e-08,2915.5,2915.4,2.7108]
[1765908067447,1e-08,2915.5,2915.4,5.9186]
[1765908067653,1e-08,2915.5,2915.4,22.1756]
[1765908068049,2.2148,2916.5,2916.4,1.3674]
[1765908068251,1.4125,2916.3,2916.2,4.5752]
[1765908068851,0.8023,2916.5,2916.4,2.7108]
[1765908069050,0.80744173,2916.5,2916.4,2.7108]
[1765908069357,0.00514173,2916.5,2916.4,2.7108]
[1765908070357,3.2078,2917.3,2917.2,1.3674]
[1765908070358,2.7936,2917.3,2917.2,1.3674]
[1765908070555,2.2148,2917.0,2916.9,3.2078]
[1765908070751,3.2078,2917.6,2916.9,5.9186]
[1765908071353,41.61040225,2917.5,2916.9,5.92155958]
[1765908071848,2.2148,2917.0,2916.9,4.57815958]
[1765908072053,3.5959,2917.0,2916.9,3.21075958]
[1765908072253,6.8037,2917.0,2916.9,0.00295958]
[1765908073149,6.8037,2917.0,2916.9,1.37035958]
[1765908073950,2.2148,2917.0,2916.9,1.37035958]
[1765908074158,41.61040225,2917.5,2916.9,1.37035958]
[1765908074159,41.61040225,2917.5,2916.9,2.71375958]
[1765908074465,0.00810225,2917.5,2917.4,2.7108]
[1765908075153,0.81040225,2917.5,2917.2,0.05694797]
[1765908075354,0.81040225,2917.5,2916.9,0.00295958]
[1765908075555,0.81040225,2917.5,2917.4,1.3674]
[1765908075751,2.22290225,2917.5,2917.4,1.3674]
[1765908076965,3.60400225,2917.5,2917.0,3.2078]
[1765908077153,1.4125,2917.1,2917.0,1.3674]
[1765908077859,1.3811,2916.4,2916.3,3.2078]
[1765908078063,2.7936,2916.1,2916.0,0.00514173]
[1765908078654,6.0014,2916.1,2916.0,0.00514173]
[1765908078960,6.0014,2916.1,2916.0,0.00759554]
[1765908081163,2.7936,2915.2,2914.5,3.80469]
[1765908081356,6.0014,2915.2,2914.5,3.80469]
[1765908082166,2.79874173,2915.1,2914.6,0.00514173]
[1765908082369,0.8023,2915.0,2914.6,0.00514173]
[1765908082869,0.8023,2915.0,2914.9,1.3674]
[1765908083866,2.2148,2915.0,2914.6,0.00514173]
[1765908084763,2.2148,2915.0,2914.9,1.3674]
[1765908085164,0.00514173,2915.1,2915.0,3.5584]
[1765908085462,0.8023,2916.0,2915.7,2.7108]
[1765908086568,0.80666084,2916.0,2915.7,2.7108]
[1765908087482,0.00436084,2916.0,2915.9,2.7108]
[1765908089265,3.2078,2916.4,2916.3,2.7108]
[1765908089658,3.2078,2916.7,2916.6,1.3674]
[1765908089858,6.8037,2917.0,2916.4,0.17148]
[1765908090365,6.81137436,2917.0,2916.4,0.18059899]
[1765908090763,5.43027436,2917.0,2916.9,1.3674]
[1765908091769,2.22247436,2917.0,2916.9,1.3674]
[1765908092174,6.81137436,2917.0,2916.5,12.262]
[1765908092773,2.2148,2916.5,2916.4,1.37651899]
[1765908092968,0.8023,2916.5,2916.4,2.71991899]
[1765908093178,4.01777436,2917.0,2916.4,2.71991899]
[1765908094577,5.51097436,2917.0,2916.9,1.5333]
[1765908094770,7.12027436,2917.0,2916.4,0.00911899]
[1765908095569,4.0831,2916.5,2916.4,0.00911899]
[1765908105179,4.0831,2916.5,2916.4,1.54241899]
[1765908105885,2.4738,2916.5,2916.4,3.08231899]
[1765908106092,3.2078,2916.7,2916.6,3.0732]
[1765908106285,1.6093,2915.9,2915.0,1.70486]
[1765908106585,4.1884,2916.0,2915.0,1.70486]
[1765908106782,2.4738,2915.5,2915.4,3.0732]
[1765908107377,4.0831,2915.5,2915.4,0.00307618]
[1765908109089,3.1025,2915.3,2915.2,0.00514173]
[1765908109285,6.3103,2915.3,2915.2,0.00514173]
[1765908109889,3.2078,2915.3,2915.2,3.07834173]
[1765908110084,6.3103,2915.3,2915.2,1.54204725]
[1765908110279,6.3103,2915.3,2915.2,0.00874725]
[1765908110484,3.1025,2915.3,2915.2,0.00874725]
[1765908110784,6.3103,2915.3,2914.4,3.2078]
[1765908111085,4.0831,2914.5,2914.4,3.2078]
[1765908111884,4.08552527,2914.5,2914.4,3.21105933]
[1765908112691,4.08552527,2914.5,2914.4,4.74435933]
[1765908112992,4.08552527,2914.5,2914.4,3.21105933]
[1765908113691,0.98302527,2914.5,2914.4,6.28425933]
[1765908113985,4.1884,2915.0,2914.4,12.28425933]
[1765908114288,5.6816,2915.0,2914.9,1.5333]
[1765908114494,0.98574173,2915.5,2915.4,1.5333]
[1765908114685,0.00514173,2915.5,2915.4,3.0732]
[1765908114889,0.0079266,2915.5,2915.4,3.0732]
[1765908116987,4.0831,2915.0,2914.0,0.3296]
[1765908117182,4.0831,2915.0,2914.3,3.2078]
[1765908118395,7.2909,2915.0,2914.3,3.2078]
[1765908118585,7.2909,2915.0,2914.4,11.85825933]
[1765908119288,3.2078,2914.9,2914.4,11.85825933]
[1765908119486,3.2078,2914.9,2914.4,0.00325933]
[1765908119687,3.2078,2914.9,2914.4,5.59925933]
[1765908119888,3.2078,2914.9,2914.4,16.26225933]
[1765908120695,1.4932,2914.5,2914.4,1.53655933]
[1765908121197,2.4738,2914.5,2914.4,1.53655933]
[1765908121407,4.0831,2914.5,2914.4,0.00325933]
[1765908124603,3.9152,2914.5,2914.4,1.53655933]
[1765908125512,2.45,2914.5,2914.4,1.53655933]
[1765908126200,3.9152,2914.5,2914.4,1.53655933]
[1765908126403,2.45,2914.5,2914.4,1.35545933]
[1765908126602,2.3209,2914.5,2914.4,2.82985933]
[1765908126807,2.3209,2914.5,2914.4,1.35545933]
[1765908127007,3.7861,2914.5,2914.4,1.35545933]
[1765908127607,3.7861,2914.5,2914.4,0.00325933]
[1765908129914,2.9346,2914.3,2914.2,0.00514173]
[1765908130912,2.9346,2914.3,2914.2,0.0075626]
[1765908132912,2.9346,2914.3,2913.6,3.21739454]
[1765908132913,2.9346,2913.7,2913.6,3.21739454]
[1765908133213,2.9346,2912.8,2912.7,0.00857943]
[1765908133411,6.1424,2912.8,2912.7,0.00857943]
[1765908133915,6.14491313,2912.8,2912.7,0.01273548]
[1765908135617,2.9346,2912.3,2912.0,3.2078]
[1765908135811,0.8515,2912.5,2911.7,3.2078]
[1765908135812,2.9346,2911.8,2911.7,3.2078]
[1765908136019,1.4694,2912.2,2912.1,1.3522]
[1765908136315,2.9346,2912.2,2911.7,7.57085309]
[1765908136518,1.4694,2912.2,2912.1,1.3522]
[1765908136715,4.0593,2912.5,2912.1,2.8266]
[1765908137019,1.4694,2912.2,2912.1,1.3522]
[1765908137322,1.4694,2912.1,2912.0,4.56]
[1765908137512,2.9346,2912.1,2912.0,3.2078]
[1765908137913,0.8515,2912.0,2911.7,3.21178396]
[1765908138116,0.8515,2912.0,2911.9,1.3522]
[1765908138311,2.9346,2911.8,2911.7,0.00398396]
[1765908138816,2.9346,2911.4,2911.3,3.2078]
[1765908139126,0.8515,2911.5,2911.4,2.8266]
[1765908139422,3.7861,2911.5,2911.4,1.3522]
[1765908139612,1.4694,2911.4,2911.3,4.56]
[1765908139915,0.8515,2912.0,2911.9,2.8266]
[1765908140121,3.2078,2912.4,2911.9,2.8266]
[1765908140413,1.4694,2911.9,2911.8,3.2078]
[1765908140616,2.9346,2911.9,2911.8,3.2078]
[1765908141015,2.9346,2911.9,2911.4,3.2078]
[1765908141217,3.7861,2911.5,2911.4,4.56]
[1765908141418,3.7861,2911.5,2911.4,3.2078]
[1765908142417,0.8515,2911.5,2911.4,6.0344]
[1765908142621,3.2078,2912.4,2911.9,2.8266]
[1765908142822,3.2078,2912.4,2911.4,3.2078]
[1765908142823,1.4694,2912.4,2912.3,1.3522]
[1765908143024,0.85664173,2913.0,2912.4,2.8266]
[1765908143219,1.4694,2912.7,2912.6,4.56]
[1765908143419,0.85664173,2913.0,2912.7,2.8266]
[1765908146224,0.00514173,2913.0,2912.7,2.8266]
[1765908146614,0.8515,2913.5,2912.9,2.8266]
[1765908146818,0.8515,2913.5,2913.0,3.2078]
[1765908147622,0.8598859,2913.5,2913.0,3.21295065]
[1765908148021,0.8598859,2913.5,2913.0,3.38463065]
[1765908148320,2.3292859,2913.5,2913.4,1.3522]
[1765908148626,0.0083859,2913.5,2913.4,2.82978877]
[1765908149223,3.7944859,2913.5,2913.4,0.00318877]
[1765908149924,3.7944859,2913.5,2913.4,1.35538877]
[1765908150230,2.3292859,2913.5,2913.4,2.82978877]
[1765908151231,0.0083859,2913.5,2913.4,2.82978877]
[1765908151418,2.9346,2913.1,2913.0,0.00515065]
[1765908152123,2.9346,2913.1,2912.3,3.2078]
[1765908152326,1.4694,2912.1,2912.0,3.2078]
[1765908152529,1.4694,2912.1,2912.0,3.21095321]
[1765908152730,1.4694,2912.1,2912.0,4.56315321]
[1765908153529,0.8515,2912.5,2912.0,6.03755321]
[1765908154631,3.2078,2912.6,2912.5,1.2948]
[1765908154828,0.8515,2913.0,2912.5,2.5545]
[1765908155030,41.6515,2913.0,2912.5,2.5545]
[1765908155332,0.8515,2913.0,2912.5,2.5545]
[1765908156636,1.3438,2912.6,2912.5,1.2948]
[1765908157334,2.692,2912.6,2912.3,3.2078]
[1765908157533,0.819,2912.5,2912.3,3.2078]
[1765908158035,0.819,2912.5,2912.4,1.2948]
[1765908158231,3.2078,2914.2,2913.8,0.17163]
[1765908158536,0.819,2914.5,2914.4,1.2948]
[1765908158732,3.2078,2914.8,2914.4,2.5545]
[1765908158931,0.819,2915.5,2914.4,2.5545]
[1765908158932,4.0268,2915.5,2914.9,2.5545]
[1765908159432,4.03518521,2915.5,2914.9,2.56209669]
[1765908159931,3.511,2915.0,2914.9,0.00759669]
[1765908160134,6.7188,2915.0,2914.9,0.00759669]
[1765908165735,3.2078,2915.4,2914.9,2.56209669]
[1765908165931,3.2078,2915.4,2914.9,5.76989669]
[1765908166639,3.511,2915.0,2914.9,0.00759669]
[1765908167035,2.1628,2915.0,2914.9,1.30239669]
[1765908168226,3.511,2915.0,2914.9,0.00759669]
[1765908169229,3.511,2915.0,2914.9,1.30239669]
[1765908169426,3.2078,2915.1,2915.0,1.2948]
[1765908169638,4.5516,2915.1,2915.0,1.2948]
[1765908169833,1.3438,2915.0,2914.9,1.30239669]
[1765908170232,3.2078,2915.1,2915.0,1.2948]
[1765908170439,3.2078,2915.4,2915.0,1.2948]
[1765908170640,0.82738521,2915.5,2915.0,1.2948]
[1765908171040,1.3438,2915.1,2915.0,1.2948]
[1765908171342,0.82738521,2915.5,2914.9,2.56209669]
[1765908171731,3.511,2915.0,2914.9,0.00759669]
[1765908172333,0.819,2915.0,2914.9,0.00759669]
[1765908172536,3.511,2915.0,2914.9,0.00759669]
[1765908174846,0.819,2915.0,2914.9,1.30239669]
[1765908175146,5.8998,2915.2,2915.1,1.2948]
[1765908175748,3.21618521,2915.5,2915.4,2.5545]
[1765908176245,0.00838521,2915.5,2915.4,2.5545]
[1765908177643,2.692,2915.4,2915.3,3.2078]
[1765908177946,2.1628,2915.0,2914.9,1.30239669]
[1765908178143,0.82738521,2915.5,2914.9,2.56209669]
[1765908178346,0.00838521,2915.5,2915.4,2.5545]
[1765908180238,1.35218521,2915.5,2915.4,2.5545]
[1765908180442,0.00838521,2915.5,2915.4,2.5545]
[1765908181245,2.17118521,2915.5,2915.4,2.5545]
[1765908181653,0.00838521,2915.5,2915.4,2.5545]
[1765908181943,0.00838521,2915.5,2915.4,5.7623]
[1765908182144,3.2078,2916.9,2916.4,2.5545]
[1765908182348,3.2078,2916.8,2916.4,2.5545]
[1765908182548,3.2078,2917.1,2916.4,2.5545]
[1765908182938,3.2078,2917.1,2916.5,3.2078]
[1765908183139,0.00263755,2917.0,2916.9,2.5545]
[1765908183344,4.0268,2918.0,2917.4,2.5545]
[1765908183941,0.819,2918.0,2917.9,1.2245]
[1765908184141,3.2078,2918.4,2917.9,2.5006]
[1765908184352,3.2078,2918.4,2918.3,1.2245]
[1765908184353,0.00897178,2918.4,2918.3,1.2245]
[1765908184540,0.27112495,2918.5,2918.4,1.2245]
[1765908184740,4.0268,2919.0,2918.4,1.64585424]
[1765908184945,4.0268,2919.0,2918.5,0.42135424]
[1765908184946,1.2074,2919.0,2918.5,0.42135424]
[1765908185250,2.3777,2918.7,2918.6,0.42135424]
[1765908185642,1.5484,2918.0,2917.9,3.554e-05]
[1765908185848,1.5484,2918.0,2916.9,1.2245]
[1765908185849,1.2074,2917.0,2916.9,1.2245]
[1765908186048,3.2078,2917.7,2917.3,1.2245]
[1765908186245,1.2074,2917.4,2917.3,1.2245]
[1765908186449,2.3777,2917.4,2916.7,4.50361907]
[1765908186654,44.0078,2917.7,2916.6,3.2078]
[1765908186655,1.2074,2916.9,2916.8,0.00514148]
[1765908186841,3.2078,2917.2,2916.8,2.50574148]
[1765908187048,0.00514148,2917.3,2916.8,2.50574148]
[1765908187354,0.00514148,2917.3,2917.2,2.5006]
[1765908188755,0.00514148,2917.3,2917.2,1.2245]
[1765908189256,0.00514148,2917.3,2917.2,6.4257]
[1765908189443,3.2078,2918.5,2918.0,1.2245]
[1765908189845,3.2078,2918.8,2918.6,1.2245]
[1765908190249,3.2078,2918.8,2918.6,2.5006]
[1765908191155,0.00514148,2918.9,2918.6,2.5006]
[1765908192057,0.00514148,2918.9,2918.6,7.00968857]
[1765908192245,0.00514148,2918.9,2918.8,2.5006]
[1765908192948,0.00514148,2918.9,2918.8,7.00847682]
[1765908193257,0.00755089,2918.9,2918.8,7.01090645]
[1765908193650,0.00755089,2918.9,2918.8,10.21870645]
[1765908193851,3.2078,2919.4,2919.3,2.5006]
[1765908194054,3.2078,2919.7,2919.6,1.2245]
[1765908194257,3.2078,2919.7,2919.0,0.7173]
[1765908194454,3.2078,2919.7,2919.6,1.2245]
[1765908194645,3.2078,2920.0,2919.9,2.5006]
[1765908194852,3.21204731,2920.0,2919.9,2.5006]
[1765908195251,0.94758893,2921.2,2919.9,2.5006]
[1765908195252,3.2078,2920.6,2920.5,2.5006]
[1765908195555,3.2078,2920.6,2920.2,0.7173]
[1765908195556,3.2078,2920.9,2920.8,2.5006]
[1765908196150,3.2078,2921.2,2921.1,2.5006]
[1765908196354,3.2078,2921.2,2921.1,1.22853182]
[1765908196557,3.21028545,2921.2,2921.1,1.22853182]
[1765908196855,3.21028545,2921.2,2921.1,2.50463182]
[1765908198256,0.00328884,2921.4,2921.3,1.2245]
[1765908198557,0.00328884,2921.4,2921.1,0.00403182]
[1765908199162,0.00328884,2921.4,2921.3,2.5006]
[1765908199363,0.00676589,2921.4,2921.3,2.5006]
[1765908199558,0.00676589,2921.4,2921.1,0.00403182]
[1765908200265,0.00676589,2921.4,2921.3,1.2245]
[1765908200964,0.00676589,2921.4,2921.3,2.5006]
[1765908201567,1.2074,2921.2,2921.1,0.00403182]
[1765908201862,2.3777,2921.2,2921.1,0.00403182]
[1765908202462,2.3777,2921.2,2920.0,3.2078]
[1765908202463,2.3777,2921.0,2920.0,3.2078]
[1765908202658,3.2078,2920.7,2920.0,3.2078]
[1765908202864,3.2078,2920.7,2920.6,1.2245]
[1765908203263,3.2078,2920.7,2920.2,0.7173]
[1765908203468,3.2078,2920.7,2920.2,0.00902664]
[1765908206358,3.2078,2920.7,2920.2,0.72632664]
[1765908206555,3.2078,2920.7,2920.6,2.5006]
[1765908206954,0.73406589,2921.4,2921.0,2.5006]
[1765908206955,3.2078,2921.1,2921.0,2.5006]
[1765908207168,4.4152,2921.1,2920.8,0.7173]
[1765908207463,4.4152,2921.1,2920.5,0.17123]
[1765908207969,4.4152,2921.1,2921.0,2.5006]
[1765908207970,3.2078,2921.1,2921.0,2.5006]
[1765908208163,5.5855,2921.1,2920.4,3.2078]
[1765908208366,1.2074,2920.5,2920.2,0.00902664]
[1765908208765,3.2078,2920.8,2920.4,1.2245]
[1765908209062,3.2078,2920.8,2920.7,2.5006]
[1765908209262,2.3777,2920.3,2920.2,3.21682664]
[1765908209463,1.2074,2919.5,2919.4,3.2078]
[1765908209657,1.2074,2919.2,2918.8,3.2078]
[1765908210059,5.60316541,2918.9,2916.6,0.7173]
[1765908210262,3.00706541,2919.0,2916.6,0.7173]
[1765908210263,3.2078,2917.5,2916.6,0.7173]
[1765908210465,2.39536541,2916.8,2915.5,3.2078]
[1765908210765,1.77379918,2915.7,2914.8,0.7173]
[1765908210974,1.77379918,2915.2,2914.2,0.7173]
[1765908211269,0.94349355,2915.1,2914.2,0.7173]
[1765908211466,0.94349355,2915.7,2915.2,0.7173]
[1765908211663,2.39536541,2915.4,2915.2,0.7173]
[1765908211962,0.00438176,2915.4,2915.2,0.7173]
[1765908212567,0.00438176,2915.4,2915.3,0.00520124]
[1765908213665,0.00514148,2915.6,2915.3,0.00520124]
[1765908214168,0.00514148,2915.6,2915.2,0.7173]
[1765908214763,8.40454194,2915.6,2914.4,0.00514148]
[1765908214965,2.39536541,2915.1,2914.4,0.00514148]
[1765908215461,2.39536541,2914.6,2914.4,4.148e-05]
[1765908215661,2.39536541,2914.6,2913.6,0.7173]
[1765908215874,2.39536541,2913.9,2913.6,0.7173]
[1765908216268,8.39536541,2913.9,2913.6,0.7173]
[1765908216573,8.39536541,2913.9,2911.2,1.2429]
[1765908216574,0.17165,2913.5,2911.2,1.2429]
[1765908216774,2.39536541,2913.1,2912.0,1.24703656]
[1765908216967,0.00369723,2913.5,2912.8,1.2429]
[1765908217168,0.00514148,2914.0,2913.6,1.2429]
[1765908217368,3.2078,2913.7,2913.6,1.2429]
[1765908217773,2.2076,2913.7,2913.6,1.2429]
[1765908218171,0.00378429,2913.7,2913.6,1.2429]
[1765908218373,1.77379918,2917.1,2916.0,1.2429]
[1765908218588,3.2078,2916.1,2916.0,1.2429]